fUSD/lending_fUSD_20250206
["ID","MTS","AMOUNT","RATE_DAILY","PERIOD"]
[351893743,1738829494149,-633.3,0.00020344,3]
[351893744,1738829494159,-633.3,0.00020344,3]
[351893745,1738829494169,-633.3,0.00020344,3]
[351893746,1738829494179,-633.3,0.00020344,3]
[351893747,1738829494190,-638.4110925,0.00020344,30]
[351893748,1738829494202,-10300.03278253,0.00020344,30]
[351893749,1738829494213,-645.85735123,0.00020344,30]
[351893750,1738829494225,-591.83330351,0.00020344,30]
[351893751,1738829494237,-1559.09141191,0.00020344,30]
[351893752,1738829494413,-246.74292777,0.00019926,2]
[351893753,1738829494424,-53.55702923,0.0002,2]
[351893754,1738829494442,-745.44297077,0.0002,2]
[351893755,1738829494452,-500.0,0.0002,3]
[351893756,1738829494462,-389.43,0.0002,3]
[351893757,1738829494472,-500.0,0.0002,3]
[351893758,1738829494482,-506.45502341,0.0002,3]
[351893759,1738829494492,-367.67800582,0.0002,3]
[351893760,1738829494686,-132.32199418,0.0002,3]
[351893761,1738829494696,-126.30232972,0.0002,3]
[351893762,1738829494707,-373.69767028,0.0002,3]
[351893763,1738829494717,-151.0,0.0002,2]
[351893764,1738829494726,-464.42232972,0.0002,3]
[351893765,1738829494911,-35.57767028,0.0002,3]
[351893766,1738829494921,-151.0,0.0002,2]
[351893767,1738829494930,-458.27084289,0.0002,3]
[351893768,1738829494942,-6.2614982,0.0002,3]
[351893769,1738829494952,-504.28167347,0.0002,3]
[351893770,1738829494961,-500.0,0.00020342,3]
[351893771,1738829494971,-500.0,0.00020343,3]
[351893772,1738829494980,-127.15682833,0.00020343,3]
[351893773,1738829495047,-372.84317167,0.00020343,3]
[351893774,1738829495057,-500.0,0.00020343,3]
[351893775,1738829495066,-500.0,0.00020343,3]
[351893776,1738829495075,-500.0,0.00020343,3]
[351893777,1738829495084,-101.26914137,0.00020343,3]
[351893778,1738829495096,-398.73085863,0.00020343,3]
[351893779,1738829495105,-500.0,0.00020343,3]
[351893780,1738829495114,-360.12,0.00020343,3]
[351893781,1738829495123,-633.3,0.00020344,3]
[351893782,1738829495133,-633.3,0.00020344,3]
[351893783,1738829495142,-633.3,0.00020344,3]
[351893784,1738829495151,-11.24914137,0.00020344,3]
[351893785,1738829495413,778.7572,8.699e-05,2]
[351893786,1738829495552,2191.3754,8.973e-05,2]
[351893787,1738829495888,495.5324051,9.946e-05,2]
[351893788,1738829495956,495.5324051,9.981e-05,2]
[351893789,1738829495991,495.5324051,9.983e-05,2]
[351893790,1738829496026,495.5324051,9.969e-05,2]
[351893791,1738829496367,599.22794651,9.973e-05,2]
[351893792,1738829496410,599.22794651,9.991e-05,2]
[351893793,1738829496451,599.22794651,9.948e-05,2]
[351893794,1738829496492,157.057322,9.881e-05,2]
[351893795,1738829496531,599.22794651,9.941e-05,2]
[351893796,1738829496593,126507.0,0.0002,120]
[351893797,1738829496672,1764.79826834,9.98e-05,2]
[351893798,1738829496717,1764.79826834,9.954e-05,2]
[351893799,1738829496753,1764.79826834,9.975e-05,2]
[351893800,1738829496788,1764.79826834,9.949e-05,2]
[351893801,1738829496831,155.813923,9.881e-05,2]
[351893802,1738829497143,324.02359839,9.969e-05,2]
[351893803,1738829497173,324.02359839,9.942e-05,2]
[351893804,1738829497203,324.02359839,9.943e-05,2]
[351893805,1738829497238,324.02359839,9.94e-05,2]
[351893806,1738829513334,166.328965,9.881e-05,2]
[351893807,1738829513660,166.328965,0.00010429,2]
[351893808,1738829514005,166.328965,0.00010977,2]
[351893809,1738829515993,8929.4133,8.836e-05,2]
[351893810,1738829527458,163.796899,9.881e-05,2]
[351893811,1738829527845,163.796899,0.00010429,2]
[351893812,1738829528171,163.796899,0.00010977,2]
[351893814,1738829649448,163.7969,9.881e-05,2]
[351893815,1738829649792,163.7969,0.00010429,2]
[351893816,1738829650126,163.7969,0.00010977,2]
[351893818,1738829694811,166.328966,9.881e-05,2]
[351893819,1738829695220,166.328966,0.00010429,2]
[351893820,1738829695376,166.328966,0.00010977,2]
[351893828,1738829956906,200.0,0.000109,4]
[351893829,1738829965399,200.0,0.000109,4]
[351893830,1738829966769,200.0,0.000109,4]
[351893832,1738829973435,200.0,0.000109,3]
[351893833,1738829981988,200.0,0.000109,3]
[351893836,1738830129039,163.7969,9.881e-05,2]
[351893840,1738830176995,166.328966,9.881e-05,2]
[351893845,1738830353284,166.328965,9.881e-05,2]
[351893846,1738830353557,166.328965,0.00010155,2]
[351893847,1738830353937,166.328965,0.00010566,2]
[351893848,1738830354271,166.328965,0.0001084,2]
[351893849,1738830354596,166.328965,0.00011251,2]
[351893853,1738830367647,163.796899,9.881e-05,2]
[351893854,1738830367977,163.796899,0.00010155,2]
[351893855,1738830368298,163.796899,0.00010566,2]
[351893856,1738830368614,163.796899,0.0001084,2]
[351893857,1738830368939,163.796899,0.00011251,2]
[351893862,1738830415200,166.328967,9.881e-05,2]
[351893863,1738830415529,166.328967,0.00010977,2]
[351893868,1738830428799,163.796901,9.881e-05,2]
[351893869,1738830429126,163.796901,0.00010977,2]
[351893873,1738830477563,148302.00603024,0.0001,2]
[351893881,1738830509787,9659.09469274,9.828e-05,2]
[351893900,1738830631542,-550.0,0.00013,2]
[351893901,1738830631553,-150.0,0.000143,2]
[351893902,1738830631562,-150.0,0.0001438,2]
[351893903,1738830631571,-372.02502329,0.00015,2]
[351893904,1738830631583,-227.97497671,0.00015,2]
[351893905,1738830631592,-300.0,0.000156,5]
[351893906,1738830631601,-600.0,0.000157,5]
[351893907,1738830631610,-900.0,0.000158,5]
[351893908,1738830631619,-1144.52502375,0.000159,5]
[351893909,1738830631638,-55.47497625,0.000159,5]
[351893910,1738830631648,-199.51565219,0.00016199,5]
[351893911,1738830631659,-1708.85053878,0.00016199,5]
[351893912,1738830631669,-300.0,0.00016199,2]
[351893913,1738830631678,-60.4367498,0.00016199,2]
[351893914,1738830631688,-89.5632502,0.00016199,2]
[351893915,1738830631698,-19873.61672961,0.000162,2]
[351893916,1738830631709,-3088.00000005,0.000162,2]
[351893917,1738830631723,-263.89999861,0.000162,2]
[351893918,1738830631735,-1273.3784205,0.000162,2]
[351893919,1738830631746,-62731.95138979,0.000162,2]
[351893920,1738830631761,-4858.38509949,0.000162,2]
[351893921,1738830631873,-20721.09618522,0.000162,2]
[351893922,1738830631885,-4781.50318598,0.000162,2]
[351893923,1738830631930,-500.0,0.000162,2]
[351893958,1738830637452,-124544.69654093,0.000162,2]
[351893959,1738830637512,-7766.15755793,0.000162,2]
[351893960,1738830637564,-1290.1000004,0.000162,2]
[351893961,1738830637576,-3378.57078325,0.000162,2]
[351893962,1738830637617,-742.98072086,0.000162,2]
[351893963,1738830637674,-9564.14507493,0.000162,2]
[351893964,1738830637730,-500.21243861,0.000162,2]
[351894145,1738830639608,-118355.65353761,0.000162,2]
[351894147,1738830639621,-159252.6230404,0.000162,2]
[351894174,1738830639876,-788.30752,0.000162,2]
[351894181,1738830639931,-573.619998,0.000162,2]
[351894183,1738830639942,-705.20017422,0.000162,2]
[351894186,1738830639953,-394.04068009,0.000162,2]
[351894188,1738830639965,-14251.69169641,0.000162,2]
[351894414,1738830642688,-49129.46000001,0.000162,2]
[351894442,1738830642961,-2127.5000002,0.000162,2]
[351894444,1738830642975,-1965.6,0.000162,2]
[351894446,1738830642989,-298.362,0.000162,2]
[351894703,1738830645514,-7151.25,0.000162,2]
[351894706,1738830645569,-1184.40097802,0.000162,2]
[351894708,1738830645581,-3910.95735972,0.000162,2]
[351894731,1738830645790,-1379.64240917,0.000162,2]
[351895274,1738830668355,200.0,9.938e-05,2]
[351895275,1738830713688,167.349678,9.881e-05,2]
[351895276,1738830714134,167.349678,0.00010429,2]
[351895277,1738830714877,167.349678,0.00010977,2]
[351895278,1738830735044,186.11,0.00010137,2]
[351895279,1738830740149,287.909,8.973e-05,2]
[351895280,1738830894509,201.87377863,0.0002,120]
[351895281,1738830895069,167.349679,9.881e-05,2]
[351895283,1738831072021,152.468218,9.881e-05,2]
[351895284,1738831072369,152.468218,0.00010566,2]
[351895285,1738831072880,152.468218,0.00011114,2]
[351895286,1738831087690,150.147158,9.881e-05,2]
[351895287,1738831088030,150.147158,0.00010566,2]
[351895288,1738831088441,150.147158,0.00011114,2]
[351895289,1738831116076,200.0,0.0002,120]
[351895291,1738831125536,200.0,0.0002,120]
[351895292,1738831151645,150.147158,9.881e-05,2]
[351895293,1738831153638,150.147158,0.00011114,2]
[351895294,1738831194628,155.444511,9.881e-05,2]
[351895295,1738831194995,155.444511,0.0001084,2]
[351895296,1738831242465,-483.99,0.0001787,30]
[351895299,1738831389151,150.147158,9.881e-05,2]
[351895300,1738831417891,459.79,0.00016658,30]
[351895301,1738831417978,459.79,0.00019242,30]
[351895302,1738831435374,162.251796,9.881e-05,2]
[351895303,1738831435687,162.251796,0.00010429,2]
[351895304,1738831436456,162.251796,0.00011114,2]
[351895305,1738831446686,161.912161,9.881e-05,2]
[351895306,1738831447001,161.912161,0.0001084,2]
[351895309,1738831614793,162.251797,9.881e-05,2]
[351895310,1738831615135,162.251797,0.0001084,2]
[351895313,1738831628746,158.97091,9.881e-05,2]
[351895314,1738831629325,158.97091,0.00011114,2]
[351895319,1738831652368,200.0,0.00011,4]
[351895320,1738831685841,200.0,0.0002,29]
[351895321,1738831694857,187.43,0.0002,29]
[351895322,1738831724648,778.7572,8.699e-05,2]
[351895323,1738831735589,352.2626,8.256e-05,2]
[351895324,1738831743287,2500.0,8.851e-05,2]
[351895336,1738831747470,3257.2715,8.836e-05,2]
[351895337,1738831748884,3191.7087,8.973e-05,2]
[351895338,1738831749196,200.0,0.0002,29]
[351895347,1738831831821,-267.595,8.119e-05,2]
[351895348,1738831831831,-1168.8339,8.699e-05,2]
[351895349,1738831831839,-62.36059728,8.699e-05,2]
[351895350,1738831831849,-1182.71091713,8.699e-05,2]
[351895351,1738831831872,-2127.24228559,8.699e-05,2]
[351895352,1738831831881,-1566.6123,8.699e-05,2]
[351895353,1738831831889,-3047.53684577,8.836e-05,2]
[351895354,1738831831927,-1026.73024974,8.836e-05,2]
[351895355,1738831831981,-1178.28522683,8.836e-05,2]
[351895356,1738831832036,-3676.86097766,8.836e-05,2]
[351895357,1738831832046,-125.5221,8.973e-05,2]
[351895358,1738831832055,-4657.82049764,8.973e-05,2]
[351895360,1738831832152,-690.61489033,8.836e-05,2]
[351895528,1738831837666,-49.02477207,8.836e-05,2]
[351895529,1738831837676,-342.17950236,8.973e-05,2]
[351895530,1738831837685,-500.0,9.569e-05,2]
[351895531,1738831837695,-156.469842,9.881e-05,2]
[351895532,1738831837705,-788.672284,9.881e-05,2]
[351895533,1738831837715,-787.021843,9.881e-05,2]
[351895534,1738831837724,-155.948277,9.881e-05,2]
[351895535,1738831837733,-155.788179,9.881e-05,2]
[351895536,1738831837743,-662.79732275,9.935e-05,2]
[351895537,1738831837764,-47.90514091,9.935e-05,2]
[351895538,1738831837774,-687.24851428,9.938e-05,2]
[351895539,1738831837829,-8729.7377983,9.938e-05,2]
[351895540,1738831837839,-220066.72238577,9.939e-05,2]
[351895541,1738831837849,-6155.63205086,9.943e-05,2]
[351895542,1738831837859,-9416.98631258,9.945e-05,2]
[351895543,1738831837868,-710.70246366,9.945e-05,2]
[351895544,1738831837878,-200.0,9.952e-05,2]
[351895545,1738831837889,-220066.72238577,9.96e-05,2]
[351895546,1738831837899,-200.0,9.962e-05,2]
[351895547,1738831837909,-12217.54756448,9.963e-05,2]
[351895548,1738831837919,-4638.84992319,9.965e-05,2]
[351895549,1738831837929,-220066.72238577,9.966e-05,2]
[351895550,1738831837939,-710.70246366,9.969e-05,2]
[351895551,1738831837950,-12217.54756448,9.972e-05,2]
[351895552,1738831837959,-9416.98631258,9.978e-05,2]
[351895553,1738831837969,-6155.63205086,9.978e-05,2]
[351895554,1738831837979,-9416.98631258,9.982e-05,2]
[351895555,1738831837990,-6155.63205086,9.982e-05,2]
[351895556,1738831837999,-12217.54756448,9.989e-05,2]
[351895557,1738831838010,-220066.72238577,9.992e-05,2]
[351895558,1738831838020,-12217.54756448,9.994e-05,2]
[351895559,1738831838029,-4638.84992319,9.994e-05,2]
[351895560,1738831838039,-4638.84992319,9.996e-05,2]
[351895561,1738831838049,-4638.84992319,9.998e-05,2]
[351895562,1738831838058,-6155.63205086,0.0001,2]
[351895563,1738831838068,-710.70246366,0.0001,2]
[351895564,1738831838078,-788.672284,0.00010018,2]
[351895565,1738831838088,-787.021843,0.00010018,2]
[351895566,1738831838097,-788.672284,0.00010155,2]
[351895567,1738831838107,-787.021843,0.00010155,2]
[351895569,1738831838117,-788.672284,0.00010292,2]
[351895571,1738831838128,-787.021843,0.00010292,2]
[351895573,1738831838138,-788.672284,0.00010429,2]
[351895575,1738831838148,-787.021843,0.00010429,2]
[351895577,1738831838157,-155.948277,0.00010429,2]
[351895579,1738831838169,-788.672284,0.00010566,2]
[351895580,1738831838178,-787.021843,0.00010566,2]
[351895583,1738831838188,-788.672284,0.00010703,2]
[351895584,1738831838198,-787.021843,0.00010703,2]
[351895586,1738831838209,-788.672284,0.0001084,2]
[351895588,1738831838218,-787.021843,0.0001084,2]
[351895590,1738831838228,-788.672284,0.00010977,2]
[351895593,1738831838239,-787.021843,0.00010977,2]
[351895595,1738831838250,-155.948277,0.00010977,2]
[351895596,1738831838260,-788.672284,0.00011114,2]
[351895598,1738831838269,-787.021843,0.00011114,2]
[351895600,1738831838279,-155.788179,0.00011114,2]
[351895602,1738831838288,-788.672284,0.00011251,2]
[351895604,1738831838297,-787.021843,0.00011251,2]
[351895606,1738831838307,-788.672284,0.00011388,2]
[351895608,1738831838316,-787.021843,0.00011388,2]
[351895610,1738831838326,-260.1084,0.0001202,2]
[351895612,1738831838336,-260.1084,0.0001202,2]
[351895614,1738831838345,-260.10841,0.0001202,2]
[351895616,1738831838355,-260.1084,0.0001202,2]
[351895618,1738831838365,-1554.05705,0.0001204,2]
[351895620,1738831838374,-260.10841,0.0001205,2]
[351895622,1738831838383,-1554.05704,0.0001205,2]
[351895624,1738831838392,-1554.05705,0.0001208,2]
[351895626,1738831838401,-1554.05705,0.0001212,2]
[351895628,1738831838411,-1554.05705,0.0001216,2]
[351895630,1738831838421,-1554.05705,0.000122,2]
[351895632,1738831838430,-550.0,0.00013,2]
[351895634,1738831838440,-150.0,0.00013178,2]
[351895636,1738831838449,-473.37,0.00013591,2]
[351895638,1738831838459,-150.0,0.00014465,2]
[351895640,1738831838469,-541.36619931,0.00014595,2]
[351895642,1738831838479,-600.0,0.00015,2]
[351895644,1738831838489,-500.0,0.00015261,2]
[351895646,1738831838498,-250.0,0.00015383,2]
[351895648,1738831838508,-388.92,0.00015623,2]
[351895650,1738831838518,-473.37,0.00015854,2]
[351895652,1738831838527,-431.43955898,0.00016061,2]
[351895654,1738831838537,-541.36619931,0.000161,2]
[351895656,1738831838547,-150.0,0.00016198,2]
[351895658,1738831838556,-500.0,0.00016199,2]
[351895660,1738831838566,-500.0,0.00016199,2]
[351895662,1738831838575,-500.0,0.00016199,2]
[351895664,1738831838584,-500.0,0.00016199,2]
[351895666,1738831838594,-500.0,0.00016199,2]
[351895668,1738831838603,-500.0,0.00016199,2]
[351895670,1738831838613,-500.0,0.00016199,2]
[351895672,1738831838622,-500.0,0.00016199,2]
[351895673,1738831838633,-528.70380728,0.00016199,2]
[351895675,1738831838642,-500.0,0.00016199,2]
[351895677,1738831838652,-500.0,0.00016199,2]
[351895679,1738831838661,-500.0,0.00016199,2]
[351895681,1738831838670,-500.0,0.00016199,2]
[351895683,1738831838679,-500.0,0.00016199,2]
[351895685,1738831838688,-500.0,0.00016199,2]
[351895687,1738831838698,-500.0,0.00016199,2]
[351895689,1738831838707,-500.0,0.00016199,2]
[351895691,1738831838716,-202.53,0.00016199,2]
[351895693,1738831838726,-1575.643,0.00016199,2]
[351895695,1738831838735,-500.0,0.00016199,2]
[351895697,1738831838745,-202.53,0.00016199,2]
[351895699,1738831838754,-500.0,0.00016199,2]
[351895701,1738831838763,-1218.12,0.00016199,2]
[351895703,1738831838773,-380.40530154,0.000162,2]
[351895705,1738831838782,-256439.57863112,0.000162,2]
[351895707,1738831838791,-200.0,0.000162,5]
[351895709,1738831838799,-200.0,0.000162,6]
[351895711,1738831838808,-200.0,0.000162,7]
[351895713,1738831838818,-2427059.09023103,0.000162,2]
[351895715,1738831838827,-27503.80577056,0.000162,2]
[351895717,1738831838837,-250.0,0.000163,2]
[351895719,1738831838847,-251.3,0.000163,2]
[351895721,1738831838857,-500.0,0.00016336,2]
[351895723,1738831838867,-500.0,0.00016473,2]
[351895725,1738831838877,-500.0,0.0001661,2]
[351895727,1738831838887,-500.0,0.00016747,2]
[351895729,1738831838896,-186.11,0.00016813,2]
[351895731,1738831838905,-500.0,0.00016884,2]
[351895732,1738831838915,-735.23,0.00017,2]
[351895734,1738831838924,-650.0,0.00017,2]
[351895736,1738831838934,-500.0,0.00017021,2]
[351895738,1738831838943,-500.0,0.00017158,2]
[351895740,1738831838952,-402.71432678,0.00017295,2]
[351895742,1738831838965,-388.92,0.00017576,2]
[351895744,1738831838975,-1000.0,0.00017585,2]
[351895746,1738831838985,-473.37,0.00018118,2]
[351895748,1738831838994,-150.0,0.00018296,2]
[351895750,1738831839003,-1218.12,0.00018391,4]
[351895752,1738831839013,-774.87,0.00018438,2]
[351895754,1738831839022,-774.87,0.00018438,2]
[351895756,1738831839031,-774.87,0.00018438,2]
[351895758,1738831839039,-774.87,0.00018438,2]
[351895760,1738831839048,-29999.99,0.00018533,2]
[351895762,1738831839057,-1131.14,0.00018533,2]
[351895764,1738831839065,-29999.99,0.00018533,2]
[351895766,1738831839073,-153.55,0.000186,2]
[351895768,1738831839083,-192.8,0.00018744,2]
[351895770,1738831839092,-1018.0,0.00018863,2]
[351895772,1738831839101,-700.0,0.00019,2]
[351895774,1738831839111,-156.29,0.00019178,2]
[351895776,1738831839120,-150.0,0.0001926,2]
[351895778,1738831839129,-150.0,0.0001926,2]
[351895780,1738831839138,-150.0,0.0001926,2]
[351895782,1738831839147,-150.0,0.0001926,2]
[351895784,1738831839157,-1786.42894402,0.00019356,2]
[351895786,1738831839168,-388.92,0.00019529,2]
[351895788,1738831839177,-1412.0,0.00019599,2]
[351895790,1738831839187,-1786.42894389,0.000197,2]
[351895792,1738831839197,-156.29,0.00019711,2]
[351895794,1738831839207,-1200.0,0.0001978,2]
[351895796,1738831839216,-3100.0,0.0001978,2]
[351895798,1738831839227,-1000.0,0.00019783,2]
[351895800,1738831839238,-172.83,0.0001979,2]
[351895802,1738831839248,-1412.0,0.00019801,2]
[351895804,1738831839257,-2023.0,0.00019817,2]
[351895806,1738831839266,-1272.0,0.00019817,2]
[351895808,1738831839276,-638.0,0.00019817,2]
[351895810,1738831839287,-150.0,0.00019817,2]
[351895812,1738831839296,-568.0,0.00019817,2]
[351895814,1738831839306,-1826.0,0.00019817,2]
[351895816,1738831839315,-1264.0,0.00019817,2]
[351895818,1738831839325,-783.0,0.00019817,2]
[351895820,1738831839335,-2953.0,0.00019817,2]
[351895822,1738831839344,-4023.0,0.00019817,2]
[351895824,1738831839354,-539.0,0.00019817,2]
[351895826,1738831839369,-3911.0,0.00019817,2]
[351895827,1738831839379,-150.0,0.00019817,2]
[351895829,1738831839388,-1007.0,0.00019817,2]
[351895832,1738831839398,-50000.0,0.0001989,4]
[351895834,1738831839409,-237.93267943,0.000199,2]
[351895836,1738831839419,-180.6218958,0.000199,2]
[351895838,1738831839428,-11692.41975462,0.000199,2]
[351895840,1738831839438,-172.72004961,0.000199,2]
[351895842,1738831839448,-172.72004943,0.000199,2]
[351895844,1738831839458,-172.72004943,0.000199,2]
[351895846,1738831839467,-172.72004943,0.000199,2]
[351895848,1738831839479,-172.72004943,0.000199,2]
[351895850,1738831839488,-172.72004943,0.000199,2]
[351895852,1738831839497,-4356.2717286,0.00019937,2]
[351895854,1738831839507,-248595.83662187,0.00019998,2]
[351895856,1738831839517,-1000.0,0.00019999,2]
[351895858,1738831839526,-2000.0,0.00019999,2]
[351895860,1738831839537,-1067.54523548,0.0002,2]
[351895862,1738831839547,-3679.0,0.0002,3]
[351895864,1738831839556,-3085.26765716,0.0002,2]
[351895866,1738831839566,-1089.0,0.0002,2]
[351895868,1738831839576,-11988.01210281,0.0002,2]
[351895870,1738831839585,-9999.95,0.0002,2]
[351895872,1738831839595,-9999.96,0.0002,2]
[351895874,1738831839605,-9999.95,0.0002,2]
[351895876,1738831839615,-10000.0,0.0002,2]
[351895878,1738831839626,-12499.98,0.0002,2]
[351895880,1738831839635,-2712.13,0.0002,2]
[351895882,1738831839644,-1196.47,0.0002,2]
[351895884,1738831839654,-9999.98,0.0002,2]
[351895886,1738831839663,-10000.0,0.0002,2]
[351895888,1738831839672,-9999.96,0.0002,2]
[351895889,1738831839682,-500.0,0.0002,3]
[351895892,1738831839692,-500.0,0.0002,3]
[351895893,1738831839702,-258.92862317,0.0002,3]
[351895895,1738831839712,-500.0,0.0002,3]
[351895897,1738831839721,-500.0,0.0002,3]
[351895899,1738831839732,-500.0,0.0002,3]
[351895901,1738831839741,-519.06883455,0.0002,3]
[351895903,1738831839751,-500.0,0.0002,3]
[351895905,1738831839760,-500.0,0.0002,3]
[351895906,1738831839770,-392.91577311,0.0002,3]
[351895907,1738831839779,-500.0,0.0002,3]
[351895908,1738831839789,-500.0,0.0002,3]
[351895909,1738831839798,-500.0,0.0002,3]
[351895910,1738831839808,-500.0,0.0002,3]
[351895911,1738831839817,-500.0,0.0002,3]
[351895912,1738831839826,-500.0,0.0002,3]
[351895913,1738831839836,-500.0,0.0002,3]
[351895915,1738831839846,-348.97,0.0002,3]
[351895917,1738831839856,-500.0,0.0002,3]
[351895919,1738831839866,-500.0,0.0002,3]
[351895921,1738831839876,-502.28762886,0.0002,3]
[351895922,1738831839885,-1200.0,0.0002,5]
[351895924,1738831839895,-1200.0,0.0002,5]
[351895926,1738831839905,-748.27,0.0002,5]
[351895928,1738831839915,-500.0,0.0002,3]
[351895930,1738831839924,-500.0,0.0002,3]
[351895932,1738831839935,-500.0,0.0002,3]
[351895934,1738831839944,-500.0,0.0002,3]
[351895936,1738831839954,-500.0,0.0002,3]
[351895938,1738831839964,-500.0,0.0002,3]
[351895940,1738831839973,-500.0,0.0002,3]
[351895942,1738831839984,-504.09205507,0.0002,3]
[351895944,1738831839994,-500.0,0.0002,3]
[351895946,1738831840004,-500.0,0.0002,3]
[351895948,1738831840014,-500.0,0.0002,3]
[351895950,1738831840024,-500.0,0.0002,3]
[351895952,1738831840034,-454.47672694,0.0002,3]
[351895954,1738831840044,-500.30275476,0.0002,3]
[351895956,1738831840054,-500.0,0.0002,3]
[351895958,1738831840063,-500.73944449,0.0002,2]
[351895960,1738831840073,-500.0,0.0002,3]
[351895962,1738831840082,-500.0,0.0002,3]
[351895964,1738831840092,-500.0,0.0002,3]
[351895966,1738831840102,-297.30131876,0.0002,3]
[351895968,1738831840112,-500.0,0.0002,3]
[351895970,1738831840122,-500.0,0.0002,3]
[351895972,1738831840132,-502.71752383,0.0002,3]
[351895974,1738831840142,-500.0,0.0002,3]
[351895976,1738831840151,-501.81488792,0.0002,3]
[351895978,1738831840162,-500.0,0.0002,3]
[351895980,1738831840174,-500.0,0.0002,3]
[351895982,1738831840183,-500.0,0.0002,3]
[351895984,1738831840193,-503.77257148,0.0002,3]
[351895986,1738831840203,-500.0,0.0002,3]
[351895988,1738831840212,-500.0,0.0002,3]
[351895990,1738831840222,-500.0,0.0002,3]
[351895992,1738831840236,-500.0,0.0002,3]
[351895993,1738831840248,-506.3332817,0.0002,3]
[351895995,1738831840259,-500.0,0.0002,3]
[351895997,1738831840269,-500.0,0.0002,3]
[351895999,1738831840279,-500.0,0.0002,3]
[351896001,1738831840290,-500.0,0.0002,3]
[351896003,1738831840300,-500.0,0.0002,3]
[351896006,1738831840311,-541.75252753,0.0002,3]
[351896008,1738831840321,-500.0,0.0002,3]
[351896010,1738831840331,-500.0,0.0002,3]
[351896012,1738831840341,-500.0,0.0002,3]
[351896014,1738831840351,-500.0,0.0002,3]
[351896016,1738831840361,-503.45999476,0.0002,3]
[351896017,1738831840371,-500.0,0.0002,3]
[351896019,1738831840382,-503.57292628,0.0002,3]
[351896021,1738831840392,-500.0,0.0002,3]
[351896024,1738831840402,-500.0,0.0002,3]
[351896025,1738831840412,-500.0,0.0002,3]
[351896028,1738831840422,-503.14907345,0.0002,3]
[351896029,1738831840432,-508.66365507,0.0002,3]
[351896031,1738831840442,-500.0,0.0002,3]
[351896033,1738831840451,-503.0228353,0.0002,3]
[351896035,1738831840460,-500.0,0.0002,3]
[351896037,1738831840471,-500.0,0.0002,3]
[351896039,1738831840483,-500.0,0.0002,3]
[351896041,1738831840493,-500.0,0.0002,3]
[351896044,1738831840503,-503.39999085,0.0002,3]
[351896046,1738831840512,-500.0,0.0002,3]
[351896048,1738831840523,-500.0,0.0002,3]
[351896049,1738831840532,-500.0,0.0002,3]
[351896051,1738831840542,-500.0,0.0002,3]
[351896054,1738831840553,-500.0,0.0002,3]
[351896055,1738831840563,-500.0,0.0002,3]
[351896057,1738831840573,-500.0,0.0002,3]
[351896059,1738831840583,-501.88333216,0.0002,3]
[351896061,1738831840593,-505.94768563,0.0002,3]
[351896063,1738831840603,-502.72827796,0.0002,3]
[351896065,1738831840613,-500.0,0.0002,3]
[351896067,1738831840623,-500.0,0.0002,3]
[351896069,1738831840633,-500.0,0.0002,3]
[351896071,1738831840642,-500.0,0.0002,3]
[351896073,1738831840653,-345.95,0.0002,3]